bitfinex/quotes_ETHUSD_20250814
["timestamp","ask_amount","ask_price","bid_price","bid_amount"]
[1755179413197,2.17437318,4599.1,4597.0,2.73215331]
[1755179413425,2.17437318,4599.1,4597.7,0.1088]
[1755179413426,0.1088,4598.4,4597.7,0.1088]
[1755179413628,0.1088,4598.4,4596.8,4.78]
[1755179413629,2.17529423,4597.1,4596.3,2.2567]
[1755179413810,4.63406718,4599.1,4596.3,2.8192]
[1755179413811,0.1088,4597.2,4596.3,2.8192]
[1755179414110,0.1088,4596.4,4595.8,0.1088]
[1755179414311,5.4597,4599.6,4595.9,2.73215852]
[1755179414644,0.14798229,4600.1,4596.1,3.0]
[1755179414823,0.2522,4600.7,4596.3,3.0]
[1755179415130,21.84871016,4600.8,4596.4,2.7104]
[1755179415331,2.7119,4600.6,4596.5,2.62926836]
[1755179415540,4.385,4600.5,4596.6,2.7104]
[1755179415711,3.0,4600.5,4596.8,2.17542638]
[1755179415911,2.17439141,4599.0,4596.9,2.7104]
[1755179416113,2.4597,4599.8,4597.0,0.4537]
[1755179416329,0.55,4599.5,4597.3,2.1751672]
[1755179416524,2.17476428,4598.2,4597.0,4.8367]
[1755179416850,0.55,4598.7,4597.0,4.8367]
[1755179417139,0.55,4598.7,4596.9,2.2567]
[1755179417354,7.927,4599.6,4597.0,0.4537]
[1755179417501,0.55,4598.2,4596.5,4.375]
[1755179417702,2.17481133,4598.1,4596.5,4.375]
[1755179417911,0.55,4598.0,4596.5,4.375]
[1755179418155,2.17482017,4598.1,4596.5,4.3758]
[1755179418353,3.0,4598.7,4596.5,4.3758]
[1755179418354,0.55,4597.8,4596.5,0.0008]
[1755179418649,2.17525271,4597.2,4596.5,0.0008]
[1755179418849,2.17390365,4600.1,4596.6,2.7104]
[1755179419017,0.19968824,4600.4,4596.7,2.6291666]
[1755179419351,19.67517513,4600.1,4596.8,7.0794]
[1755179419552,2.1734135,4601.1,4596.8,7.0794]
[1755179419553,0.16023077,4600.6,4597.9,2.17490149]
[1755179419852,0.002,4601.9,4600.0,2.17386891]
[1755179420055,0.002,4601.9,4600.1,7.0794]
[1755179420216,0.002,4601.9,4600.2,4.367]
[1755179420556,2.17337322,4601.2,4599.8,4.367]
[1755179420710,0.002,4601.9,4599.4,2.7104]
[1755179420913,2.17310993,4601.7,4599.4,2.7104]
[1755179421159,2.17405541,4599.7,4599.4,2.7104]
[1755179421451,2.72368787,4600.5,4598.7,3.362396]
[1755179421771,2.17341123,4601.1,4598.7,0.651996]
[1755179421772,2.17448029,4598.8,4598.7,0.651996]
[1755179422056,2.4032,4600.3,4598.2,4.36]
[1755179422258,2.4032,4600.3,4597.1,0.4601]
[1755179422259,3.0,4600.2,4597.1,0.4601]
[1755179422427,2.17533173,4597.0,4596.3,0.4601]
[1755179422763,2.1753838,4596.9,4596.1,6.7588]
[1755179423054,0.55,4597.9,4596.6,2.8619]
[1755179423214,2.1754737,4596.7,4596.6,0.4601]
[1755179423413,2.17538461,4596.9,4596.3,4.354]
[1755179423616,2.17552103,4596.6,4595.9,5.2401]
[1755179423836,2.72552103,4596.6,4595.9,5.2401]
[1755179424418,2.83432103,4596.6,4595.9,4.78]
[1755179424739,2.83432103,4596.6,4594.6,0.652583]
[1755179424740,3.00089691,4596.6,4594.8,0.4601]
[1755179424939,8.63199691,4596.6,4594.2,4.343]
[1755179425138,8.83221601,4596.6,4594.2,4.343]
[1755179425342,8.58001601,4596.6,4594.2,4.343]
[1755179425518,6.20111601,4596.6,4594.2,4.343]
[1755179425716,2.83432103,4596.6,4595.5,0.4601]
[1755179426121,2.83432103,4596.6,4594.8,0.4601]
[1755179426122,2.72552103,4596.6,4594.8,0.4601]
[1755179426323,5.72552103,4596.6,4594.8,0.4601]
[1755179426938,8.10442103,4596.6,4594.8,0.4601]
[1755179427242,5.72552103,4596.6,4594.8,0.4601]
[1755179427645,2.72552103,4596.6,4594.8,0.4601]
[1755179427861,2.17552103,4596.6,4595.4,0.4601]
[1755179428662,2.72552103,4596.6,4595.4,0.4601]
[1755179429165,2.72552103,4596.6,4594.6,2.63652659]
[1755179429382,2.72552103,4596.6,4594.6,4.7931]
[1755179429680,2.3681,4598.4,4596.5,2.8627]
[1755179429822,2.3681,4598.4,4596.6,2.17550024]
[1755179430025,2.17520592,4597.3,4596.6,0.7221851]
[1755179430225,2.17471674,4598.3,4596.6,0.0008]
[1755179430436,0.20053092,4598.7,4596.6,0.0008]
[1755179430664,2.17462215,4598.5,4596.6,0.0008]
[1755179430885,2.17526473,4597.2,4596.6,0.0008]
[1755179431030,2.3681,4599.0,4596.5,2.8619]
[1755179431369,0.20057744,4598.9,4597.2,2.17523417]
[1755179431573,0.16524453,4599.2,4597.3,2.8619]
[1755179431775,0.16724453,4599.2,4598.7,2.17452381]
[1755179431931,0.16724453,4599.2,4596.4,2.17558398]
[1755179431932,2.17433845,4599.1,4598.8,2.8619]
[1755179432133,0.002,4599.2,4598.9,0.4601]
[1755179432447,0.002,4599.2,4597.8,0.4601]
[1755179432779,0.002,4599.2,4597.8,4.7741]
[1755179433277,0.002,4600.6,4597.9,2.88364905]
[1755179433601,0.002,4600.6,4599.3,2.17423408]
[1755179433881,0.002,4600.6,4597.9,2.4018]
[1755179433882,2.17381331,4600.3,4599.4,4.311]
[1755179434086,2.17373804,4600.4,4599.3,4.311]
[1755179434236,0.002,4600.6,4599.3,4.311]
[1755179434432,0.002,4600.6,4599.4,0.47711]
[1755179434632,0.002,4600.6,4599.2,0.4601]
[1755179434832,2.17415932,4599.5,4599.3,4.305]
[1755179435050,0.002,4600.6,4599.2,0.4601]
[1755179435257,0.55,4600.3,4599.2,0.4601]
[1755179435565,0.55,4600.5,4599.2,0.4601]
[1755179435768,0.55,4600.3,4599.2,1.39402639]
[1755179435984,0.55,4600.3,4599.3,4.297]
[1755179436157,0.1088,4599.9,4599.3,4.297]
[1755179436469,0.1088,4600.5,4599.8,0.1088]
[1755179436670,0.1088,4600.5,4599.9,0.4601]
[1755179437012,0.1088,4600.5,4600.1,2.17386279]
[1755179437175,0.1088,4600.5,4600.2,2.8619]
[1755179437382,0.002,4600.6,4600.5,2.17367677]
[1755179437534,0.1088,4601.6,4600.5,5.03557677]
[1755179437862,2.17264418,4602.7,4600.6,2.8619]
[1755179438064,0.20104167,4603.5,4600.7,5.2401]
[1755179438269,0.20104167,4604.0,4601.4,2.17324679]
[1755179438580,0.002,4604.6,4601.5,2.88363204]
[1755179438889,0.002,4604.6,4601.6,2.63325716]
[1755179439042,0.002,4604.6,4601.8,3.0]
[1755179439240,0.002,4604.6,4604.5,2.17178846]
[1755179439441,0.002,4604.6,4604.5,2.8619]
[1755179439640,0.002,4604.6,4604.5,7.1759]
[1755179439840,0.002,4604.6,4603.8,0.4601]
[1755179440081,0.002,4604.6,4603.9,4.307]
[1755179440250,0.002,4604.6,4603.9,0.0008]
[1755179440455,2.17202432,4604.0,4603.9,0.0008]
[1755179440682,0.002,4604.6,4603.9,2.8627]
[1755179440899,0.002,4604.6,4604.0,0.74637]
[1755179441054,0.002,4604.6,4604.1,2.8619]
[1755179441259,0.003,4605.0,4604.5,2.17178846]
[1755179441473,0.003,4605.0,4604.6,7.1689]
[1755179441799,0.003,4605.0,4604.7,7.1689]
[1755179441965,0.003,4605.0,4604.7,6.7088]
[1755179442160,0.003,4605.0,4603.9,2.4026]
[1755179442485,2.17183563,4604.4,4603.9,0.0008]
[1755179442681,0.55,4604.9,4603.9,0.4609]
[1755179442885,2.17202432,4604.0,4603.9,0.0008]
[1755179443091,2.17159981,4604.9,4603.7,4.32]
[1755179443387,0.55,4604.9,4603.8,4.314]
[1755179443697,0.16229728,4605.0,4603.9,2.8619]
[1755179443698,0.003,4605.0,4603.9,2.8619]
[1755179443857,0.003,4605.0,4604.1,2.17197715]
[1755179444198,2.17159981,4604.9,4603.9,2.8619]
[1755179444512,2.17164994,4604.8,4603.9,2.8619]
[1755179444696,0.003,4605.0,4603.9,2.8619]
[1755179444896,2.17159981,4604.9,4603.9,2.8619]
[1755179445071,0.003,4605.0,4603.9,2.8619]
[1755179445273,0.003,4605.0,4603.9,0.4601]
[1755179445468,0.55,4604.9,4603.7,4.312]
[1755179445812,0.55,4604.4,4603.8,4.304]
[1755179446117,2.17202432,4604.0,4603.9,4.301]
[1755179446412,0.003,4605.0,4603.3,2.4018]
[1755179446614,2.17159981,4604.9,4603.3,2.4018]
[1755179446817,2.17159981,4604.9,4603.4,4.296]
[1755179446818,2.17194905,4604.2,4603.4,4.296]
[1755179446986,0.55,4604.8,4603.4,4.296]
[1755179447184,0.003,4605.0,4603.4,5.01179]
[1755179447413,0.003,4605.0,4603.5,2.17226023]
[1755179447633,0.003,4605.0,4603.3,2.4018]
[1755179447915,0.003,4605.0,4603.6,4.7511]
[1755179448115,0.003,4605.0,4603.8,2.17209732]
[1755179448327,0.55,4604.9,4603.6,0.4601]
[1755179448636,0.003,4605.0,4603.7,4.297]
[1755179448814,0.55,4604.8,4603.7,6.46915524]
[1755179449003,0.003,4605.0,4604.0,2.17198599]
[1755179449198,0.003,4605.0,4604.1,2.17193507]
[1755179449404,0.003,4605.0,4604.9,2.17159981]
[1755179449600,0.002,4606.0,4605.2,2.17145835]
[1755179449787,0.002,4606.0,4605.5,2.1713169]
[1755179450109,0.002,4606.0,4605.5,0.4601]
[1755179450309,0.002,4606.0,4605.3,4.291]
[1755179450487,0.002,4606.0,4605.3,4.2918]
[1755179450689,0.002,4606.0,4605.5,2.1713169]
[1755179450921,0.002,4606.0,4605.5,5.0332169]
[1755179451243,0.002,4606.0,4605.5,4.289]
[1755179451591,0.002,4606.0,4605.5,6.8978169]
[1755179451783,0.002,4606.0,4605.5,10.21671909]
[1755179452126,0.002,4606.0,4605.5,5.92771909]
[1755179452311,0.002,4606.0,4605.5,4.7195]
[1755179452625,0.002,4606.0,4605.3,0.0008]
[1755179452830,0.002,4606.0,4605.5,4.284]
[1755179452989,0.002,4606.0,4605.9,2.17112833]
[1755179453322,0.003,4607.9,4606.2,2.17098693]
[1755179453523,0.003,4607.9,4606.3,7.1304]
[1755179453725,0.003,4607.9,4606.4,0.4375]
[1755179453925,0.003,4607.9,4606.5,6.45184554]
[1755179454128,0.003,4607.9,4606.7,2.17075129]
[1755179454291,0.003,4607.9,4606.8,3.77951513]
[1755179454492,0.003,4607.9,4607.8,2.17023308]
[1755179454715,0.003,4607.9,4607.8,6.88273308]
[1755179454916,0.003,4607.9,4607.8,9.29463308]
[1755179455728,0.003,4607.9,4607.8,9.57555759]
[1755179455930,0.003,4607.9,4607.8,10.46921944]
[1755179456133,2.5623,4611.3,4607.9,2.17018598]
[1755179456310,2.5623,4611.3,4609.1,2.16961976]
[1755179456499,2.16867992,4611.1,4609.2,4.263]
[1755179456699,2.16914503,4610.2,4609.2,6.43256833]
[1755179456899,0.16342173,4611.1,4609.2,4.263]
[1755179457108,1.04099069,4614.9,4609.2,4.263]
[1755179457305,0.55,4611.2,4609.3,2.16952208]
[1755179457610,19.67517513,4612.8,4609.3,0.02169526]
[1755179457611,0.1342093,4611.3,4609.3,0.02169526]
[1755179457947,2.5623,4611.5,4609.4,0.02169479]
[1755179458101,0.1088,4610.1,4609.5,0.1088]
[1755179458434,2.3061,4612.5,4609.6,2.8494]
[1755179458636,2.3061,4612.5,4609.7,0.4375]
[1755179458838,2.92129732,4612.5,4610.2,2.16908218]
[1755179458998,2.85878898,4612.5,4610.3,4.264]
[1755179459429,2.16876838,4611.0,4610.3,4.264]
[1755179459626,2.16878163,4610.9,4610.3,4.264]
[1755179459832,2.16862995,4611.3,4610.4,0.02169009]
[1755179460006,0.16116461,4612.5,4610.3,4.7015]
[1755179460212,3.19818724,4612.9,4610.3,0.71842451]
[1755179460438,3.19818724,4612.9,4609.8,5.05594]
[1755179460439,3.0,4612.6,4610.2,4.255]
[1755179460613,0.55,4612.4,4610.2,4.255]
[1755179460798,3.0,4612.2,4610.3,4.249]
[1755179461137,3.0,4612.2,4610.2,0.0008]
[1755179461138,2.16905624,4610.3,4610.2,0.0008]
[1755179461540,0.55,4610.3,4608.6,0.4375]
[1755179461840,2.16889461,4610.7,4608.7,4.252]
[1755179462053,2.36719585,4611.0,4608.8,0.4375]
[1755179462261,0.2562,4611.7,4608.8,0.4375]
[1755179462262,2.16886806,4610.7,4608.9,2.4119]
[1755179462404,4.47446085,4611.8,4608.9,2.4119]
[1755179462405,2.3061,4612.0,4609.0,4.6925]
[1755179462604,2.16835075,4611.8,4609.1,2.8494]
[1755179462853,0.55,4611.6,4609.2,4.254]
[1755179463004,2.16968277,4609.0,4608.5,0.4375]
[1755179463215,2.16958358,4609.2,4608.6,4.255]
[1755179463430,0.55,4610.0,4608.6,4.255]
[1755179463431,0.55,4610.0,4608.7,4.255]
[1755179463743,0.55,4610.2,4608.7,4.255]
[1755179464047,2.16955909,4609.3,4608.6,0.4375]
[1755179464263,0.55,4609.9,4608.7,4.25]
[1755179464426,2.1695058,4609.4,4608.7,4.25]
[1755179464627,0.55,4610.1,4608.6,0.4375]
[1755179464958,0.55,4610.4,4608.7,6.41280808]
[1755179465159,2.16957795,4609.2,4608.6,0.4375]
[1755179465367,0.55,4610.0,4608.7,4.238]
[1755179465533,0.55,4610.0,4608.0,0.4375]
[1755179465534,2.16924445,4609.9,4608.0,0.4375]
[1755179465734,0.55,4609.7,4608.0,0.4375]
[1755179465943,2.17013293,4608.1,4607.8,4.769]
[1755179466139,2.17004494,4608.2,4607.9,4.235]
[1755179466350,0.2562,4609.7,4607.8,4.769]
[1755179466351,2.17014743,4608.0,4607.8,4.769]
[1755179466552,2.17014743,4608.0,4607.9,4.232]
[1755179466728,2.17018598,4607.9,4607.8,4.769]
[1755179466931,2.17018598,4607.9,4607.8,8.999]
[1755179467457,0.55,4609.3,4607.8,8.999]
[1755179467629,2.3061,4609.5,4607.8,8.999]
[1755179467630,0.55,4608.8,4607.8,8.999]
[1755179467831,0.70957206,4608.8,4607.8,8.999]
[1755179468141,2.44460187,4609.5,4606.9,2.4119]
[1755179468142,2.71990793,4608.5,4606.9,2.4119]
[1755179468367,0.56859138,4612.7,4607.0,7.31459]
[1755179468565,0.1088,4610.4,4609.7,0.1088]
[1755179468768,0.16357959,4612.6,4610.1,0.1088]
[1755179468769,0.1088,4611.0,4610.1,0.1088]
[1755179469079,0.1088,4611.0,4610.2,4.294]
[1755179469395,0.1088,4611.0,4610.1,0.1088]
[1755179469561,2.16910329,4610.2,4610.1,0.1088]
[1755179469764,2.16910329,4610.2,4608.8,6.93774476]
[1755179469765,0.4309,4610.2,4609.4,4.291]
[1755179470011,0.4309,4610.1,4607.8,0.65065]
[1755179470207,2.16952316,4609.4,4607.9,4.289]
[1755179470356,0.55,4609.5,4607.9,4.289]
[1755179470559,0.55,4609.5,4607.8,2.17020222]
[1755179470859,3.4309,4609.6,4608.1,2.17007306]
[1755179470860,2.16947975,4609.4,4608.1,2.17007306]
[1755179471071,2.16943269,4609.5,4608.5,2.16986315]
[1755179471268,0.55,4610.1,4608.4,2.1699398]
[1755179471461,0.55,4610.1,4608.1,3.27542935]
[1755179471462,2.16944939,4609.5,4608.5,4.282]
[1755179471668,2.16944939,4609.5,4608.5,6.45189797]
[1755179471886,2.16948197,4609.4,4608.5,4.282]
[1755179472094,2.16948197,4609.4,4608.4,2.16994837]
[1755179472256,0.4309,4609.9,4608.5,4.276]
[1755179472806,0.55,4610.1,4608.5,4.276]
[1755179473015,0.1620421,4610.2,4608.6,0.4375]
[1755179473305,2.16909307,4610.3,4609.0,2.16965314]
[1755179473598,0.002,4610.6,4609.1,0.0216962]
[1755179473812,0.002,4610.6,4609.2,0.9371269]
[1755179473957,0.002,4610.6,4610.4,2.1690066]
[1755179474159,2.3061,4612.1,4609.2,3.7865269]
[1755179474361,0.20509717,4612.8,4609.5,2.16943269]
[1755179474593,2.16797467,4612.6,4609.6,4.7075]
[1755179474802,2.3061,4612.7,4609.7,0.47075]
[1755179474958,0.16620907,4612.6,4609.8,0.02169291]
[1755179475158,2.3061,4613.4,4609.9,2.8494]
[1755179475358,2.1676927,4613.2,4610.0,2.6066738]
[1755179475658,0.650473,4613.7,4610.1,4.281]
[1755179475659,2.16806509,4612.5,4610.1,4.281]
[1755179475934,2.36076429,4613.6,4609.2,0.9371269]
[1755179475935,0.55,4612.0,4609.3,0.4375]
[1755179476088,2.3061,4612.4,4609.0,2.16963646]
[1755179476089,0.55,4610.9,4610.3,0.001]
[1755179476436,0.55,4611.0,4610.3,0.001]
[1755179476591,0.002,4611.7,4610.4,2.8494]
[1755179476793,0.002,4611.7,4611.6,2.16844479]
[1755179477130,0.3952,4614.2,4612.2,2.16815406]
[1755179477131,0.16572957,4614.2,4612.2,2.16815406]
[1755179477336,0.3952,4614.9,4612.3,2.8494]
[1755179477495,0.3952,4614.9,4612.4,0.45918068]
[1755179477694,0.55717307,4614.9,4612.5,4.32]
[1755179477890,2.16694114,4614.8,4612.6,0.37871075]
[1755179478201,3.0,4614.8,4612.4,0.4375]
[1755179478446,2.16703506,4614.6,4612.4,0.4375]
[1755179478651,2.16712898,4614.4,4612.6,2.16795653]
[1755179478808,2.16778038,4613.1,4612.7,4.315]
[1755179479013,3.3952,4614.7,4612.8,4.315]
[1755179479235,2.1665859,4615.6,4612.8,7.1644]
[1755179479437,2.16753832,4613.6,4612.8,2.8494]
[1755179479636,0.55543718,4614.9,4612.9,4.313]
[1755179479836,0.3952,4614.9,4612.9,4.313]
[1755179480146,0.108,4613.9,4613.2,0.108]
[1755179480348,0.20042812,4613.8,4613.3,4.306]
[1755179480536,2.36789258,4613.7,4613.3,4.306]
[1755179480845,2.16763069,4613.4,4612.8,2.8494]
[1755179481056,0.20044738,4613.5,4612.9,4.307]
[1755179481211,4.47288771,4615.2,4613.0,4.306]
[1755179481212,0.55,4614.3,4613.0,4.306]
[1755179481553,0.55,4614.3,4611.3,4.768]
[1755179481554,0.20047412,4614.2,4613.1,4.306]
[1755179481848,2.16747013,4613.7,4613.2,4.302]
[1755179482049,0.55,4614.4,4613.2,4.302]
[1755179482251,2.16745599,4613.8,4613.2,4.302]
[1755179482426,0.20056469,4613.7,4612.9,0.0008]
[1755179482626,2.16778668,4613.0,4612.9,0.0008]
[1755179482839,0.55,4612.7,4611.3,11.3764]
[1755179483022,0.20056469,4612.6,4611.3,11.3764]
[1755179483216,2.16836525,4611.8,4611.3,9.062]
[1755179483417,0.20056469,4612.4,4611.3,9.062]
[1755179483617,2.16836123,4611.8,4611.3,9.062]
[1755179483856,0.20056469,4612.2,4611.6,2.16843868]
[1755179484062,0.55,4613.0,4611.7,0.4351]
[1755179484354,0.20064229,4612.9,4611.8,2.3144]
[1755179484554,0.20064229,4612.8,4611.9,4.286]
[1755179484756,0.20064229,4612.7,4611.9,4.286]
[1755179485054,0.3952,4614.3,4612.0,0.45678256]
[1755179485254,0.2006531,4614.2,4612.0,2.7495]
[1755179485553,0.20059083,4614.1,4612.1,0.4351]
[1755179485753,2.6507,4615.4,4612.1,0.4351]
[1755179485754,0.20059083,4614.0,4612.1,0.4351]
[1755179485929,2.16723243,4614.2,4612.4,2.16806868]
[1755179486257,0.002,4615.3,4611.9,4.7146]
[1755179486258,0.20047401,4614.1,4612.5,3.19774687]
[1755179486563,0.20047401,4614.0,4612.6,4.278]
[1755179486722,0.20047401,4613.9,4612.7,4.276]
[1755179486919,0.20049236,4613.8,4611.9,0.4286]
[1755179487125,0.20049236,4613.7,4612.2,0.4351]
[1755179487422,0.20045067,4614.6,4612.2,0.4351]
[1755179487652,0.20045067,4614.5,4612.3,4.27]
[1755179487827,0.20045067,4614.4,4612.3,4.27]
[1755179488028,0.20045067,4614.3,4612.2,0.4351]
[1755179488259,0.16282586,4614.2,4612.5,2.16802168]
[1755179488424,2.1674026,4613.9,4612.9,2.16782924]
[1755179488618,2.1674026,4613.9,4612.7,2.16792767]
[1755179488963,4.42242561,4614.9,4612.3,0.49177515]
[1755179488964,0.002,4615.3,4612.8,7.0301788]
[1755179489162,2.16680642,4615.1,4613.1,2.16769711]
[1755179489323,0.002,4615.3,4613.2,2.7495]
[1755179489524,2.16715333,4614.4,4613.3,4.257]
[1755179489763,0.002,4615.3,4613.4,5.7495]
[1755179489924,0.002,4615.3,4613.3,4.257]
[1755179489925,0.002,4615.3,4615.2,2.16675333]
[1755179490125,0.0012,4615.3,4615.2,4.91625333]
[1755179490352,0.0012,4615.3,4615.2,9.31725333]
[1755179491067,0.0012,4615.3,4615.2,9.31625333]
[1755179491222,0.0012,4615.3,4615.2,9.31525333]
[1755179491727,0.0012,4615.3,4615.2,9.31605333]
[1755179492168,0.0012,4615.3,4615.2,2.8583]
[1755179492330,0.0012,4615.3,4615.2,6.7072]
[1755179492534,0.0012,4615.3,4615.2,9.30905333]
[1755179492728,0.0012,4615.3,4615.2,10.45664193]
[1755179492932,0.0012,4615.3,4615.2,10.45164193]
[1755179494267,0.0012,4615.3,4615.2,10.34364193]
[1755179494457,0.0012,4615.3,4615.2,10.33164193]
[1755179495275,0.002,4615.7,4615.4,2.16664069]
[1755179495489,0.002,4615.7,4615.6,2.16656556]
[1755179495687,0.002,4615.7,4615.6,4.91606556]
[1755179495893,0.002,4615.7,4615.6,4.27]
[1755179496080,0.002,4615.7,4615.2,0.0008]
[1755179496257,0.002,4615.7,4615.3,4.275]
[1755179496456,0.002,4615.7,4615.4,4.275]
[1755179496658,0.002,4615.7,4615.5,4.29666612]
[1755179496856,0.002,4615.7,4615.0,0.4351]
[1755179497058,0.002,4615.7,4614.7,4.765]
[1755179497302,0.55,4615.5,4613.7,2.16741878]
[1755179497504,0.002,4615.7,4613.8,4.7091]
[1755179497807,0.002,4615.7,4613.9,2.77117363]
[1755179497958,0.002,4615.3,4615.2,2.16675333]
[1755179498162,0.002,4615.3,4615.2,9.63761151]
[1755179498806,0.002,4615.3,4615.2,6.88411151]
[1755179498962,0.002,4615.3,4615.2,4.28]
[1755179499161,2.2555,4618.7,4615.2,7.0295]
[1755179499455,0.4625,4618.5,4615.5,2.1666125]
[1755179499659,0.4625,4619.2,4615.7,3.0]
[1755179499891,2.16507116,4618.8,4616.2,2.16628395]
[1755179500196,0.4625,4618.8,4616.3,7.0395]
[1755179500403,0.4625,4618.8,4616.4,2.1661901]
[1755179500619,0.4625,4618.8,4616.3,7.0395]
[1755179500620,2.16534429,4618.3,4616.5,4.286]
[1755179500897,0.4625,4618.8,4616.5,4.286]
[1755179501070,0.4625,4619.0,4616.6,0.72521096]
[1755179501400,2.16511008,4618.8,4617.7,2.16553673]
[1755179501713,2.16524491,4618.5,4617.8,4.285]
[1755179501913,0.4625,4619.0,4617.9,4.285]
[1755179502217,0.4625,4619.6,4617.9,4.285]
[1755179502392,0.4625,4619.6,4617.9,4.71358]
[1755179502600,2.1649176,4619.2,4618.1,2.16535748]
[1755179502788,0.4625,4620.5,4618.0,2.3144]
[1755179502964,2.16480179,4619.4,4618.1,2.16538722]
[1755179503184,0.1341504,4620.2,4617.9,4.285]
[1755179503364,0.55,4620.1,4617.9,6.45046448]
[1755179503579,0.55,4619.9,4617.9,4.285]
[1755179503795,0.55,4619.8,4617.9,6.45048596]
[1755179503995,2.16511128,4618.8,4618.0,4.266]
[1755179504307,0.55,4618.6,4618.1,4.266]
[1755179504468,2.16529641,4618.4,4618.1,4.266]
[1755179504663,2.16516674,4618.6,4618.1,4.266]
[1755179504877,1.71871317,4622.5,4618.1,4.69268]
[1755179504878,0.55,4619.5,4618.1,4.69268]
[1755179505077,0.002,4619.6,4618.1,4.69268]
[1755179505078,0.55,4619.4,4618.1,4.266]
[1755179505306,0.002,4619.6,4618.1,4.266]
[1755179505715,0.55,4619.4,4618.1,4.266]
[1755179505919,0.55,4619.2,4617.8,0.0008]
[1755179506081,2.718,4619.3,4618.1,4.257]
[1755179506281,2.16492686,4619.1,4618.1,4.68278]
[1755179506476,0.4645,4619.6,4618.2,4.267]
[1755179506903,0.4645,4619.6,4617.8,0.0008]
[1755179507116,0.4645,4619.6,4618.3,4.266]
[1755179507416,2.16525203,4618.4,4618.3,4.266]
[1755179507581,2.16525203,4618.4,4617.8,0.0008]
[1755179507582,0.55,4618.0,4617.8,0.0008]
[1755179507790,5.43348647,4617.9,4617.8,0.0008]
[1755179508552,3.268,4617.9,4615.7,2.3144]
[1755179508677,2.16632651,4616.2,4615.6,4.762]
[1755179508877,2.16641161,4616.0,4615.6,4.762]
[1755179509106,0.55,4617.2,4615.6,4.762]
[1755179509308,0.4625,4616.8,4615.7,4.262]
[1755179509583,0.20010844,4617.2,4615.7,4.262]
[1755179509801,2.16615121,4616.5,4615.6,4.762]
[1755179510121,0.20017913,4617.3,4615.7,4.263]
[1755179510292,0.4625,4617.2,4615.6,4.762]
[1755179510495,2.718,4617.2,4615.7,4.262]
[1755179510819,0.4625,4617.2,4615.7,4.262]
[1755179510994,2.16570842,4617.5,4615.8,2.16645783]
[1755179511178,0.55,4617.5,4615.6,4.762]
[1755179511383,0.55,4616.5,4615.7,4.256]
[1755179511578,2.16572096,4617.4,4615.7,4.256]
[1755179511579,0.20022305,4617.3,4615.7,6.9211]
[1755179511795,0.20022305,4617.3,4615.6,4.762]
[1755179511796,2.1661509,4616.5,4615.8,4.255]
[1755179511994,0.4519,4617.3,4615.9,4.257]
[1755179512195,0.55,4616.6,4615.9,4.2578]
[1755179512391,0.55,4617.7,4615.9,4.2578]
[1755179512592,0.55,4617.4,4616.0,4.257]
[1755179512794,0.4519,4617.9,4616.0,4.257]
[1755179513033,0.4519,4617.9,4615.9,0.0008]
[1755179513180,0.4519,4617.9,4616.0,4.254]
[1755179513379,0.78542102,4617.9,4616.0,6.42037478]
[1755179513613,0.65227769,4617.9,4616.0,4.254]
[1755179513919,0.20037769,4618.0,4616.1,2.6651]
[1755179514119,0.003,4618.1,4616.2,3.434]
[1755179514306,0.003,4618.1,4617.8,2.16551827]
[1755179514510,0.003,4618.1,4617.9,6.9151]
[1755179514695,0.003,4618.1,4618.0,9.18853958]
[1755179514901,0.0022,4618.1,4618.0,7.0231]
[1755179515088,0.0022,4618.1,4618.0,9.18853958]
[1755179515287,0.0022,4618.1,4618.0,0.108]
[1755179515638,0.0022,4618.1,4618.0,4.356]
[1755179515838,0.0022,4618.1,4618.0,4.248]
[1755179517219,0.0022,4618.1,4618.0,4.232]
[1755179517415,0.6602,4618.1,4618.0,4.232]
[1755179518107,0.1102,4618.1,4618.0,4.226]
[1755179518309,0.0022,4618.1,4617.5,0.108]
[1755179518530,0.0022,4618.1,4616.8,2.2311]
[1755179518531,0.0022,4618.1,4617.6,6.8901]
[1755179518819,0.0022,4618.1,4617.8,0.108]
[1755179519014,0.0022,4618.1,4617.9,4.224]
[1755179519226,0.0022,4618.1,4216.9,0.05903473]
[1755179519227,0.1102,4618.1,4617.5,0.108]
[1755179519438,0.0022,4618.1,4618.0,2.16543958]
[1755179519633,0.0022,4618.1,4618.0,4.93953958]
[1755179519865,0.3093532,4619.5,4618.2,2.16531116]
[1755179520140,2.16479839,4619.4,4618.4,2.1652069]
[1755179520314,0.20134755,4619.5,4618.3,6.8871]
[1755179520525,0.20134996,4619.4,4618.6,2.16511544]
[1755179520724,2.16672812,4619.6,4618.3,6.8871]
[1755179520725,0.002,4619.6,4618.3,2.6651]
[1755179520904,0.20135461,4619.5,4618.4,6.38524313]
[1755179521156,0.20135461,4619.4,4618.4,4.22]
[1755179521357,0.002,4619.6,4618.4,4.22]
[1755179521565,0.20136202,4619.5,4618.5,4.83030515]
[1755179521747,0.002,4619.6,4619.5,2.16473644]
[1755179522069,0.002,4619.6,4619.5,4.42847364]
[1755179522266,0.002,4619.6,4619.5,4.42927364]
[1755179522448,0.002,4619.6,4619.5,6.59401008]
[1755179522836,0.002,4619.6,4619.5,0.0008]
[1755179523037,2.71668958,4619.6,4619.5,4.2118]
[1755179523286,0.002,4619.6,4619.5,4.2118]